[Event "December 5 Late 2023"]
[Site "https://www.chess.com"]
[Date "2023.12.05"]
[Round "7"]
[White "Iskusnyh, Sergei"]
[Black "Rustemov, Alexander"]
[Result "0-1"]
[Board "34"]
[TimeControl "180+1"]
[WhiteFideId "4120027"]
[BlackFideId "4119002"]
[WhiteElo "2578"]
[BlackElo "2833"]
[WhiteTeam "RUS"]
[BlackTeam "RUS"]
[WhiteClock "0:00:00"]
[BlackClock "0:00:33"]

1. d4 {[%clk 0:03:00]}  d5 {[%clk 0:02:57]} 2. c4 {[%clk 0:03:00]}  dxc4 {[%clk 0:02:58]} 3. e3 {[%clk 0:02:59]}  e6 {[%clk 0:02:57]} 4. Bxc4 {[%clk 0:02:59]}  c5 {[%clk 0:02:58]} 5. Nf3 {[%clk 0:02:59]}  a6 {[%clk 0:02:58]} 6. O-O {[%clk 0:02:56]}  Nf6 {[%clk 0:02:58]} 7. Nc3 {[%clk 0:02:53]}  b5 {[%clk 0:02:57]} 8. Be2 {[%clk 0:02:52]}  Bb7 {[%clk 0:02:57]} 9. dxc5 {[%clk 0:02:51]}  Qxd1 {[%clk 0:02:55]} 10. Rxd1 {[%clk 0:02:50]}  Bxc5 {[%clk 0:02:56]} 11. Nd2 {[%clk 0:02:50]}  Nbd7 {[%clk 0:02:53]} 12. Nb3 {[%clk 0:02:49]}  Bb6 {[%clk 0:02:39]} 13. a4 {[%clk 0:02:48]}  b4 {[%clk 0:02:35]} 14. a5 {[%clk 0:02:48]}  Bxe3 {[%clk 0:02:19]} 15. Bxe3 {[%clk 0:02:39]}  bxc3 {[%clk 0:02:19]} 16. bxc3 {[%clk 0:02:36]}  O-O {[%clk 0:02:17]} 17. c4 {[%clk 0:02:31]}  Rfc8 {[%clk 0:02:16]} 18. Rab1 {[%clk 0:02:20]}  Be4 {[%clk 0:02:15]} 19. Rbc1 {[%clk 0:02:16]}  Rab8 {[%clk 0:02:06]} 20. Nd4 {[%clk 0:02:08]}  Nc5 {[%clk 0:02:03]} 21. f3 {[%clk 0:02:05]}  Bg6 {[%clk 0:01:59]} 22. Bf1 {[%clk 0:01:46]}  e5 {[%clk 0:01:57]} 23. Ne2 {[%clk 0:01:36]}  Nb3 {[%clk 0:01:53]} 24. Rc3 {[%clk 0:01:33]}  Nxa5 {[%clk 0:01:53]} 25. c5 {[%clk 0:01:28]}  Nc6 {[%clk 0:01:51]} 26. Ng3 {[%clk 0:01:25]}  a5 {[%clk 0:01:48]} 27. Rd6 {[%clk 0:01:24]}  Ne8 {[%clk 0:01:44]} 28. Rd7 {[%clk 0:01:20]}  Rc7 {[%clk 0:01:44]} 29. Rd1 {[%clk 0:01:12]}  f6 {[%clk 0:01:38]} 30. h4 {[%clk 0:01:07]}  h5 {[%clk 0:01:37]} 31. Bc4+ {[%clk 0:01:05]}  Bf7 {[%clk 0:01:36]} 32. Nxh5 {[%clk 0:01:03]}  Bxc4 {[%clk 0:01:35]} 33. Rxc4 {[%clk 0:01:03]}  Rb4 {[%clk 0:01:35]} 34. Rdc1 {[%clk 0:00:53]}  Rcb7 {[%clk 0:01:30]} 35. Ng3 {[%clk 0:00:51]}  Kf7 {[%clk 0:01:19]} 36. Ne4 {[%clk 0:00:49]}  Ke6 {[%clk 0:01:18]} 37. R4c2 {[%clk 0:00:44]}  a4 {[%clk 0:01:15]} 38. Rd1 {[%clk 0:00:43]}  Rb1 {[%clk 0:01:15]} 39. Rxb1 {[%clk 0:00:36]}  Rxb1+ {[%clk 0:01:14]} 40. Kh2 {[%clk 0:00:36]}  f5 {[%clk 0:01:07]} 41. Ng5+ {[%clk 0:00:30]}  Ke7 {[%clk 0:01:07]} 42. Rc4 {[%clk 0:00:17]}  Rb4 {[%clk 0:01:05]} 43. Rc3 {[%clk 0:00:15]}  Rxh4+ {[%clk 0:01:04]} 44. Kg1 {[%clk 0:00:15]}  Rb4 {[%clk 0:01:03]} 45. Rd3 {[%clk 0:00:08]}  Rb3 {[%clk 0:01:00]} 46. Rxb3 {[%clk 0:00:07]}  axb3 {[%clk 0:01:01]} 47. Bc1 {[%clk 0:00:08]}  Na5 {[%clk 0:00:51]} 48. Kf1 {[%clk 0:00:04]}  Nc4 {[%clk 0:00:50]} 49. c6 {[%clk 0:00:04]}  b2 {[%clk 0:00:49]} 50. Bxb2 {[%clk 0:00:04]}  Nxb2 {[%clk 0:00:50]} 51. Ke2 {[%clk 0:00:05]}  Nc7 {[%clk 0:00:42]} 52. Ke3 {[%clk 0:00:04]}  Kf6 {[%clk 0:00:42]} 53. Nh7+ {[%clk 0:00:04]}  Ke7 {[%clk 0:00:39]} 54. Ng5 {[%clk 0:00:04]}  Nc4+ {[%clk 0:00:38]} 55. Kd3 {[%clk 0:00:03]}  Nd6 {[%clk 0:00:38]} 56. g4 {[%clk 0:00:00]}  Ne6 {[%clk 0:00:33]} 0-1

[Event "December 5 Late 2023"]
[Site "https://www.chess.com"]
[Date "2023.12.05"]
[Round "7"]
[White "Yuan, Qingyu"]
[Black "Kashefi, Amir Hosein"]
[Result "1-0"]
[Board "36"]
[TimeControl "180+1"]
[WhiteFideId "8609772"]
[BlackFideId "12557935"]
[WhiteElo "2817"]
[BlackElo "2555"]
[WhiteTeam "CHN"]
[BlackTeam "IRI"]
[WhiteClock "0:00:51"]
[BlackClock "0:00:00"]

1. e4 {[%clk 0:03:00]}  c6 {[%clk 0:02:50]} 2. d4 {[%clk 0:03:00]}  d5 {[%clk 0:02:51]} 3. exd5 {[%clk 0:03:01]}  cxd5 {[%clk 0:02:51]} 4. Bd3 {[%clk 0:03:01]}  Nf6 {[%clk 0:02:52]} 5. h3 {[%clk 0:03:01]}  Nc6 {[%clk 0:02:53]} 6. c3 {[%clk 0:03:01]}  g6 {[%clk 0:02:54]} 7. Nf3 {[%clk 0:03:02]}  Bf5 {[%clk 0:02:54]} 8. O-O {[%clk 0:03:02]}  Bxd3 {[%clk 0:02:53]} 9. Qxd3 {[%clk 0:03:03]}  Bg7 {[%clk 0:02:54]} 10. Bf4 {[%clk 0:03:03]}  O-O {[%clk 0:02:55]} 11. Nbd2 {[%clk 0:03:04]}  Rc8 {[%clk 0:02:54]} 12. Rfe1 {[%clk 0:03:04]}  a6 {[%clk 0:02:54]} 13. Nb3 {[%clk 0:03:03]}  Ne4 {[%clk 0:02:52]} 14. Nfd2 {[%clk 0:03:01]}  Nxd2 {[%clk 0:02:46]} 15. Qxd2 {[%clk 0:03:01]}  b6 {[%clk 0:02:36]} 16. Qd3 {[%clk 0:02:59]}  Ra8 {[%clk 0:02:26]} 17. Re2 {[%clk 0:02:59]}  e6 {[%clk 0:02:23]} 18. Rae1 {[%clk 0:02:55]}  Qd7 {[%clk 0:02:23]} 19. h4 {[%clk 0:02:54]}  Na5 {[%clk 0:02:13]} 20. Nxa5 {[%clk 0:02:43]}  bxa5 {[%clk 0:02:13]} 21. b3 {[%clk 0:02:39]}  a4 {[%clk 0:02:14]} 22. b4 {[%clk 0:02:39]}  Qb5 {[%clk 0:02:13]} 23. Qc2 {[%clk 0:02:32]}  Rfc8 {[%clk 0:01:59]} 24. Qd2 {[%clk 0:02:31]}  Qc4 {[%clk 0:01:49]} 25. Re3 {[%clk 0:02:27]}  a5 {[%clk 0:01:43]} 26. Bd6 {[%clk 0:02:18]}  axb4 {[%clk 0:01:42]} 27. Bxb4 {[%clk 0:02:17]}  a3 {[%clk 0:01:38]} 28. Rf3 {[%clk 0:02:11]}  Rab8 {[%clk 0:01:29]} 29. Bxa3 {[%clk 0:02:02]}  Ra8 {[%clk 0:01:26]} 30. Bc5 {[%clk 0:01:59]}  Rc7 {[%clk 0:00:50]} 31. Qf4 {[%clk 0:01:52]}  Rb7 {[%clk 0:00:48]} 32. a3 {[%clk 0:01:51]}  Bf8 {[%clk 0:00:43]} 33. Bb4 {[%clk 0:01:51]}  Bxb4 {[%clk 0:00:34]} 34. cxb4 {[%clk 0:01:51]}  Qa2 {[%clk 0:00:23]} 35. Ree3 {[%clk 0:01:46]}  Rc8 {[%clk 0:00:18]} 36. Kh2 {[%clk 0:01:44]}  Rbc7 {[%clk 0:00:17]} 37. h5 {[%clk 0:01:43]}  Qb1 {[%clk 0:00:10]} 38. Qe5 {[%clk 0:01:36]}  Rc1 {[%clk 0:00:04]} 39. Kg3 {[%clk 0:01:34]}  gxh5 {[%clk 0:00:02]} 40. Rf6 {[%clk 0:01:25]}  h4+ {[%clk 0:00:02]} 41. Kxh4 {[%clk 0:01:23]}  Rh1+ {[%clk 0:00:01]} 42. Kg3 {[%clk 0:01:24]}  Rcc1 {[%clk 0:00:01]} 43. Qg5+ {[%clk 0:01:13]}  Kf8 {[%clk 0:00:01]} 44. Rexe6 {[%clk 0:00:52]}  Rcg1 {[%clk 0:00:01]} 45. Rxf7+ {[%clk 0:00:50]}  Kxf7 {[%clk 0:00:00]} 46. Qf6+ {[%clk 0:00:51]} 1-0

[Event "December 5 Late 2023"]
[Site "https://www.chess.com"]
[Date "2023.12.05"]
[Round "7"]
[White "Bold, Andre"]
[Black "Pakleza, Zbigniew"]
[Result "1/2-1/2"]
[Board "41"]
[TimeControl "180+1"]
[WhiteFideId "16208471"]
[BlackFideId "1119290"]
[WhiteElo "2508"]
[BlackElo "2669"]
[WhiteTeam "GER"]
[BlackTeam "POL"]
[WhiteClock "0:00:36"]
[BlackClock "0:00:04"]

1. Nf3 {[%clk 0:03:00]}  d5 {[%clk 0:02:59]} 2. e3 {[%clk 0:03:00]}  Nf6 {[%clk 0:02:59]} 3. b3 {[%clk 0:02:59]}  Bf5 {[%clk 0:02:59]} 4. Be2 {[%clk 0:02:58]}  e6 {[%clk 0:02:59]} 5. Bb2 {[%clk 0:02:59]}  h6 {[%clk 0:02:59]} 6. d3 {[%clk 0:02:59]}  c5 {[%clk 0:02:57]} 7. O-O {[%clk 0:02:59]}  Nc6 {[%clk 0:02:58]} 8. Nbd2 {[%clk 0:02:58]}  Be7 {[%clk 0:02:57]} 9. Ne5 {[%clk 0:02:58]}  Nxe5 {[%clk 0:02:57]} 10. Bxe5 {[%clk 0:02:58]}  O-O {[%clk 0:02:58]} 11. c4 {[%clk 0:02:52]}  Bh7 {[%clk 0:02:52]} 12. Qc2 {[%clk 0:02:45]}  Qb6 {[%clk 0:02:49]} 13. Rac1 {[%clk 0:02:43]}  Rac8 {[%clk 0:02:45]} 14. Qb2 {[%clk 0:02:34]}  Rfd8 {[%clk 0:02:44]} 15. Rfd1 {[%clk 0:02:32]}  Ne8 {[%clk 0:02:31]} 16. Nf3 {[%clk 0:02:28]}  Bf6 {[%clk 0:02:29]} 17. Bxf6 {[%clk 0:02:27]}  Nxf6 {[%clk 0:02:30]} 18. Ne5 {[%clk 0:02:17]}  d4 {[%clk 0:02:22]} 19. e4 {[%clk 0:02:12]}  a5 {[%clk 0:02:10]} 20. Rb1 {[%clk 0:02:11]}  Ra8 {[%clk 0:02:00]} 21. f4 {[%clk 0:02:05]}  Qc7 {[%clk 0:01:55]} 22. g3 {[%clk 0:02:05]}  Ne8 {[%clk 0:01:34]} 23. a3 {[%clk 0:02:04]}  f6 {[%clk 0:01:30]} 24. Nf3 {[%clk 0:02:04]}  Nd6 {[%clk 0:01:26]} 25. b4 {[%clk 0:01:55]}  axb4 {[%clk 0:01:14]} 26. axb4 {[%clk 0:01:56]}  b6 {[%clk 0:01:14]} 27. bxc5 {[%clk 0:01:52]}  bxc5 {[%clk 0:01:14]} 28. Qb6 {[%clk 0:01:51]}  Qxb6 {[%clk 0:01:07]} 29. Rxb6 {[%clk 0:01:52]}  Kf7 {[%clk 0:00:58]} 30. Rdb1 {[%clk 0:01:51]}  Ke7 {[%clk 0:00:57]} 31. Kf2 {[%clk 0:01:47]}  Rdc8 {[%clk 0:00:48]} 32. g4 {[%clk 0:01:30]}  Rc7 {[%clk 0:00:43]} 33. Rb8 {[%clk 0:01:22]}  Rxb8 {[%clk 0:00:36]} 34. Rxb8 {[%clk 0:01:23]}  Rc8 {[%clk 0:00:32]} 35. Rxc8 {[%clk 0:01:22]}  Nxc8 {[%clk 0:00:32]} 36. Bd1 {[%clk 0:01:22]}  Nb6 {[%clk 0:00:29]} 37. Bb3 {[%clk 0:01:22]}  Kd6 {[%clk 0:00:28]} 38. h4 {[%clk 0:01:21]}  e5 {[%clk 0:00:26]} 39. f5 {[%clk 0:01:20]}  Bg8 {[%clk 0:00:26]} 40. g5 {[%clk 0:01:20]}  hxg5 {[%clk 0:00:21]} 41. hxg5 {[%clk 0:01:20]}  Bf7 {[%clk 0:00:22]} 42. g6 {[%clk 0:01:17]}  Be8 {[%clk 0:00:19]} 43. Nd2 {[%clk 0:01:17]}  Ke7 {[%clk 0:00:13]} 44. Ke2 {[%clk 0:01:16]}  Bc6 {[%clk 0:00:13]} 45. Kd1 {[%clk 0:01:15]}  Kd6 {[%clk 0:00:12]} 46. Kc2 {[%clk 0:01:15]}  Kc7 {[%clk 0:00:13]} 47. Nf1 {[%clk 0:01:16]}  Kd6 {[%clk 0:00:11]} 48. Ng3 {[%clk 0:01:16]}  Ke7 {[%clk 0:00:12]} 49. Nh5 {[%clk 0:01:16]}  Kf8 {[%clk 0:00:13]} 50. Kb2 {[%clk 0:01:16]}  Bd7 {[%clk 0:00:13]} 51. Ka3 {[%clk 0:01:14]}  Bc6 {[%clk 0:00:14]} 52. Ng3 {[%clk 0:01:15]}  Ke8 {[%clk 0:00:14]} 53. Nh1 {[%clk 0:01:10]}  Ke7 {[%clk 0:00:14]} 54. Nf2 {[%clk 0:01:11]}  Kf8 {[%clk 0:00:15]} 55. Nd1 {[%clk 0:01:11]}  Ke7 {[%clk 0:00:15]} 56. Nb2 {[%clk 0:01:10]}  Kd6 {[%clk 0:00:12]} 57. Ba4 {[%clk 0:01:06]}  Bb7 {[%clk 0:00:08]} 58. Bb5 {[%clk 0:01:02]}  Ke7 {[%clk 0:00:07]} 59. Nd1 {[%clk 0:00:53]}  Bc8 {[%clk 0:00:06]} 60. Nf2 {[%clk 0:00:52]}  Bb7 {[%clk 0:00:07]} 61. Nh1 {[%clk 0:00:51]}  Bc8 {[%clk 0:00:07]} 62. Ng3 {[%clk 0:00:51]}  Bb7 {[%clk 0:00:07]} 63. Nh5 {[%clk 0:00:51]}  Kf8 {[%clk 0:00:07]} 64. Kb3 {[%clk 0:00:51]}  Bc8 {[%clk 0:00:08]} 65. Bc6 {[%clk 0:00:48]}  Ba6 {[%clk 0:00:08]} 66. Ng3 {[%clk 0:00:48]}  Bc8 {[%clk 0:00:07]} 67. Ne2 {[%clk 0:00:48]}  Ke7 {[%clk 0:00:07]} 68. Nc1 {[%clk 0:00:48]}  Ba6 {[%clk 0:00:06]} 69. Ka3 {[%clk 0:00:47]}  Kd6 {[%clk 0:00:05]} 70. Bd5 {[%clk 0:00:48]}  Nxd5 {[%clk 0:00:02]} 71. cxd5 {[%clk 0:00:48]}  c4 {[%clk 0:00:03]} 72. dxc4 {[%clk 0:00:44]}  Bxc4 {[%clk 0:00:03]} 73. Kb4 {[%clk 0:00:44]}  Bf1 {[%clk 0:00:04]} 74. Nb3 {[%clk 0:00:41]}  Bg2 {[%clk 0:00:04]} 75. Nd2 {[%clk 0:00:41]}  Bh1 {[%clk 0:00:04]} 76. Kc4 {[%clk 0:00:36]}  Bg2 {[%clk 0:00:03]} 77. Kd3 {[%clk 0:00:36]}  Kc5 {[%clk 0:00:03]} 78. Nb3+ {[%clk 0:00:36]}  Kd6 {[%clk 0:00:03]} 79. Nd2 {[%clk 0:00:36]}  Kc5 {[%clk 0:00:04]} 80. Nb3+ {[%clk 0:00:36]}  Kd6 {[%clk 0:00:04]} 81. Nd2 {[%clk 0:00:36]} 1/2-1/2

[Event "December 5 Late 2023"]
[Site "https://www.chess.com"]
[Date "2023.12.05"]
[Round "7"]
[White "Zavgorodniy, Sergiy"]
[Black "Wanyama, Harold"]
[Result "1/2-1/2"]
[Board "43"]
[TimeControl "180+1"]
[WhiteFideId "14110148"]
[BlackFideId "10000380"]
[WhiteElo "2660"]
[BlackElo "2482"]
[WhiteTeam "UKR"]
[BlackTeam "UGA"]
[WhiteClock "0:00:19"]
[BlackClock "0:00:19"]

1. d4 {[%clk 0:02:57]}  d5 {[%clk 0:02:59]} 2. c4 {[%clk 0:02:56]}  e6 {[%clk 0:02:59]} 3. Nf3 {[%clk 0:02:56]}  Nf6 {[%clk 0:02:59]} 4. e3 {[%clk 0:02:56]}  Be7 {[%clk 0:02:58]} 5. Nbd2 {[%clk 0:02:56]}  O-O {[%clk 0:02:58]} 6. Bd3 {[%clk 0:02:56]}  b6 {[%clk 0:02:58]} 7. O-O {[%clk 0:02:56]}  Bb7 {[%clk 0:02:58]} 8. Qe2 {[%clk 0:02:56]}  a6 {[%clk 0:02:58]} 9. e4 {[%clk 0:02:56]}  dxe4 {[%clk 0:02:57]} 10. Nxe4 {[%clk 0:02:57]}  Nbd7 {[%clk 0:02:57]} 11. Rd1 {[%clk 0:02:55]}  Qc8 {[%clk 0:02:52]} 12. b3 {[%clk 0:02:45]}  c5 {[%clk 0:02:47]} 13. Bb2 {[%clk 0:02:45]}  Re8 {[%clk 0:02:41]} 14. Neg5 {[%clk 0:02:40]}  h6 {[%clk 0:02:37]} 15. Ne4 {[%clk 0:02:29]}  cxd4 {[%clk 0:02:35]} 16. Nxd4 {[%clk 0:02:29]}  Bf8 {[%clk 0:02:29]} 17. Nf3 {[%clk 0:02:20]}  e5 {[%clk 0:02:26]} 18. Re1 {[%clk 0:02:10]}  Nxe4 {[%clk 0:02:22]} 19. Bxe4 {[%clk 0:02:11]}  Bxe4 {[%clk 0:02:22]} 20. Qxe4 {[%clk 0:02:12]}  Nc5 {[%clk 0:02:22]} 21. Qc2 {[%clk 0:02:01]}  e4 {[%clk 0:02:21]} 22. Nd4 {[%clk 0:01:53]}  Nd3 {[%clk 0:02:21]} 23. Re2 {[%clk 0:01:52]}  Nxb2 {[%clk 0:02:18]} 24. Qxb2 {[%clk 0:01:53]}  g6 {[%clk 0:02:19]} 25. Rae1 {[%clk 0:01:50]}  f5 {[%clk 0:02:10]} 26. Nc2 {[%clk 0:01:42]}  Bg7 {[%clk 0:02:09]} 27. Qa3 {[%clk 0:01:39]}  Qc6 {[%clk 0:02:02]} 28. Ne3 {[%clk 0:01:38]}  b5 {[%clk 0:01:57]} 29. Rc2 {[%clk 0:01:31]}  Kh7 {[%clk 0:01:54]} 30. Nd5 {[%clk 0:01:28]}  Rad8 {[%clk 0:01:49]} 31. Rec1 {[%clk 0:01:22]}  bxc4 {[%clk 0:01:45]} 32. bxc4 {[%clk 0:01:23]}  Rd7 {[%clk 0:01:31]} 33. Qg3 {[%clk 0:01:15]}  Red8 {[%clk 0:01:28]} 34. h4 {[%clk 0:01:09]}  h5 {[%clk 0:01:21]} 35. Kh1 {[%clk 0:00:55]}  a5 {[%clk 0:01:20]} 36. Qb3 {[%clk 0:00:51]}  a4 {[%clk 0:00:53]} 37. Qg3 {[%clk 0:00:44]}  Bh6 {[%clk 0:00:46]} 38. Rb1 {[%clk 0:00:25]}  Rxd5 {[%clk 0:00:35]} 39. cxd5 {[%clk 0:00:26]}  Qxc2 {[%clk 0:00:35]} 40. Rb7+ {[%clk 0:00:27]}  Kh8 {[%clk 0:00:31]} 41. Qxg6 {[%clk 0:00:22]}  Qc1+ {[%clk 0:00:29]} 42. Kh2 {[%clk 0:00:22]}  Qf4+ {[%clk 0:00:28]} 43. Kh1 {[%clk 0:00:19]}  Qc1+ {[%clk 0:00:18]} 44. Kh2 {[%clk 0:00:19]}  Qf4+ {[%clk 0:00:19]} 45. Kh1 {[%clk 0:00:19]}  Qc1+ {[%clk 0:00:19]} 1/2-1/2

[Event "December 5 Late 2023"]
[Site "https://www.chess.com"]
[Date "2023.12.05"]
[Round "7"]
[White "Zhou, Qiyu"]
[Black "Sturt, Raven"]
[Result "0-1"]
[Board "45"]
[TimeControl "180+1"]
[WhiteFideId "505161"]
[BlackFideId "2007304"]
[WhiteElo "2439"]
[BlackElo "2655"]
[WhiteTeam "CAN"]
[BlackTeam "USA"]
[WhiteClock "0:00:02"]
[BlackClock "0:00:52"]

1. e4 {[%clk 0:02:52]}  e5 {[%clk 0:02:59]} 2. Nf3 {[%clk 0:02:50]}  Nc6 {[%clk 0:02:59]} 3. Bb5 {[%clk 0:02:49]}  f5 {[%clk 0:02:57]} 4. exf5 {[%clk 0:02:33]}  e4 {[%clk 0:02:55]} 5. Qe2 {[%clk 0:02:27]}  Qe7 {[%clk 0:02:49]} 6. Bxc6 {[%clk 0:02:14]}  dxc6 {[%clk 0:02:49]} 7. Nd4 {[%clk 0:02:08]}  Qe5 {[%clk 0:02:48]} 8. Nb3 {[%clk 0:02:01]}  Bd6 {[%clk 0:02:42]} 9. Nc3 {[%clk 0:01:47]}  Nf6 {[%clk 0:02:40]} 10. d4 {[%clk 0:01:28]}  exd3 {[%clk 0:02:39]} 11. Qxe5+ {[%clk 0:01:25]}  Bxe5 {[%clk 0:02:40]} 12. cxd3 {[%clk 0:01:26]}  Bxf5 {[%clk 0:02:39]} 13. O-O {[%clk 0:01:26]}  O-O-O {[%clk 0:02:38]} 14. Be3 {[%clk 0:01:16]}  Bxd3 {[%clk 0:02:34]} 15. Rfe1 {[%clk 0:01:14]}  Ng4 {[%clk 0:02:21]} 16. h3 {[%clk 0:01:08]}  Nxe3 {[%clk 0:02:20]} 17. Rxe3 {[%clk 0:01:08]}  Bf6 {[%clk 0:02:17]} 18. Rd1 {[%clk 0:01:02]}  Bc2 {[%clk 0:02:16]} 19. Rde1 {[%clk 0:01:01]}  b6 {[%clk 0:02:13]} 20. R1e2 {[%clk 0:00:58]}  Bd3 {[%clk 0:02:10]} 21. Re1 {[%clk 0:00:56]}  c5 {[%clk 0:02:07]} 22. Nc1 {[%clk 0:00:52]}  Bc2 {[%clk 0:01:55]} 23. R1e2 {[%clk 0:00:44]}  Bg6 {[%clk 0:01:53]} 24. Kh2 {[%clk 0:00:33]}  Kb7 {[%clk 0:01:51]} 25. Ne4 {[%clk 0:00:27]}  Bd4 {[%clk 0:01:49]} 26. Rf3 {[%clk 0:00:15]}  Rhe8 {[%clk 0:01:38]} 27. Nc3 {[%clk 0:00:09]}  Be5+ {[%clk 0:01:35]} 28. Kg1 {[%clk 0:00:06]}  Bxc3 {[%clk 0:01:14]} 29. Rxc3 {[%clk 0:00:05]}  Rxe2 {[%clk 0:01:14]} 30. Nxe2 {[%clk 0:00:06]}  Rd2 {[%clk 0:01:15]} 31. Nf4 {[%clk 0:00:05]}  Rxb2 {[%clk 0:01:15]} 32. Re3 {[%clk 0:00:03]}  Rxa2 {[%clk 0:01:11]} 33. Re7 {[%clk 0:00:04]}  Rd2 {[%clk 0:01:04]} 34. Ne6 {[%clk 0:00:04]}  a5 {[%clk 0:00:56]} 35. Nxc7 {[%clk 0:00:04]}  Kc6 {[%clk 0:00:56]} 36. Ne6 {[%clk 0:00:03]}  Rd7 {[%clk 0:00:53]} 37. Rxd7 {[%clk 0:00:01]}  Kxd7 {[%clk 0:00:53]} 38. Nf4 {[%clk 0:00:01]}  a4 {[%clk 0:00:53]} 39. Ne2 {[%clk 0:00:02]}  a3 {[%clk 0:00:52]} 40. Nc3 {[%clk 0:00:03]}  b5 {[%clk 0:00:51]} 41. Nxb5 {[%clk 0:00:03]}  a2 {[%clk 0:00:51]} 42. Nc3 {[%clk 0:00:02]}  a1=Q+ {[%clk 0:00:52]} 0-1

[Event "December 5 Late 2023"]
[Site "https://www.chess.com"]
[Date "2023.12.05"]
[Round "7"]
[White "Chaika, Vitalii"]
[Black "Cieslak, Patryk"]
[Result "0-1"]
[Board "46"]
[TimeControl "180+1"]
[WhiteFideId "14111802"]
[BlackFideId "21078882"]
[WhiteElo "2424"]
[BlackElo "2651"]
[WhiteTeam "UKR"]
[BlackTeam "POL"]
[WhiteClock "0:00:00"]
[BlackClock "0:00:09"]

1. d4 {[%clk 0:03:00]}  g6 {[%clk 0:03:00]} 2. Bf4 {[%clk 0:03:00]}  Bg7 {[%clk 0:03:00]} 3. e3 {[%clk 0:03:00]}  c5 {[%clk 0:03:01]} 4. c3 {[%clk 0:03:00]}  Qb6 {[%clk 0:03:00]} 5. Qb3 {[%clk 0:03:00]}  Nc6 {[%clk 0:02:58]} 6. Nd2 {[%clk 0:02:58]}  Qxb3 {[%clk 0:02:55]} 7. axb3 {[%clk 0:02:58]}  cxd4 {[%clk 0:02:56]} 8. exd4 {[%clk 0:02:58]}  d6 {[%clk 0:02:54]} 9. Ngf3 {[%clk 0:02:58]}  Nf6 {[%clk 0:02:49]} 10. Be2 {[%clk 0:02:54]}  O-O {[%clk 0:02:48]} 11. O-O {[%clk 0:02:53]}  Nd7 {[%clk 0:02:44]} 12. b4 {[%clk 0:02:52]}  e5 {[%clk 0:02:43]} 13. dxe5 {[%clk 0:02:35]}  dxe5 {[%clk 0:02:32]} 14. Be3 {[%clk 0:02:34]}  Ne7 {[%clk 0:02:29]} 15. Bxa7 {[%clk 0:02:20]}  Bh6 {[%clk 0:01:32]} 16. Nc4 {[%clk 0:02:16]}  e4 {[%clk 0:01:27]} 17. Nd4 {[%clk 0:02:13]}  Nd5 {[%clk 0:01:12]} 18. Nb5 {[%clk 0:02:09]}  b6 {[%clk 0:01:03]} 19. Ncd6 {[%clk 0:01:52]}  Ne5 {[%clk 0:00:55]} 20. c4 {[%clk 0:01:28]}  Nf4 {[%clk 0:00:50]} 21. Bd1 {[%clk 0:01:10]}  Bd7 {[%clk 0:00:44]} 22. Nc7 {[%clk 0:01:06]}  Nc6 {[%clk 0:00:33]} 23. Nxa8 {[%clk 0:01:00]}  Rxa8 {[%clk 0:00:34]} 24. Nb5 {[%clk 0:00:55]}  Bg7 {[%clk 0:00:26]} 25. Bc2 {[%clk 0:00:44]}  Bxb2 {[%clk 0:00:23]} 26. Ra2 {[%clk 0:00:43]}  Be5 {[%clk 0:00:20]} 27. Bxe4 {[%clk 0:00:43]}  Re8 {[%clk 0:00:12]} 28. Bxb6 {[%clk 0:00:24]}  Nxb4 {[%clk 0:00:11]} 29. Ra7 {[%clk 0:00:23]}  Bc6 {[%clk 0:00:11]} 30. Bxc6 {[%clk 0:00:21]}  Nxc6 {[%clk 0:00:11]} 31. Ra2 {[%clk 0:00:16]}  Bb8 {[%clk 0:00:10]} 32. g3 {[%clk 0:00:15]}  Ne2+ {[%clk 0:00:09]} 33. Kg2 {[%clk 0:00:15]}  f5 {[%clk 0:00:07]} 34. Bc7 {[%clk 0:00:13]}  Bxc7 {[%clk 0:00:06]} 35. Nxc7 {[%clk 0:00:14]}  Rc8 {[%clk 0:00:04]} 36. Rxe2 {[%clk 0:00:12]}  Rxc7 {[%clk 0:00:03]} 37. Rfe1 {[%clk 0:00:12]}  Kf7 {[%clk 0:00:04]} 38. Ra2 {[%clk 0:00:11]}  Nd4 {[%clk 0:00:03]} 39. Rc1 {[%clk 0:00:10]}  Ne6 {[%clk 0:00:03]} 40. Ra4 {[%clk 0:00:09]}  Nc5 {[%clk 0:00:04]} 41. Ra5 {[%clk 0:00:09]}  Nb3 {[%clk 0:00:04]} 42. Raa1 {[%clk 0:00:07]}  Nxa1 {[%clk 0:00:04]} 43. Rxa1 {[%clk 0:00:06]}  Rxc4 {[%clk 0:00:05]} 44. Ra7+ {[%clk 0:00:07]}  Kg8 {[%clk 0:00:05]} 45. h4 {[%clk 0:00:05]}  Rc2 {[%clk 0:00:05]} 46. Kf3 {[%clk 0:00:06]}  Rc3+ {[%clk 0:00:05]} 47. Kf4 {[%clk 0:00:06]}  h6 {[%clk 0:00:03]} 48. f3 {[%clk 0:00:05]}  Rc4+ {[%clk 0:00:03]} 49. Ke5 {[%clk 0:00:05]}  Rc5+ {[%clk 0:00:04]} 50. Kf6 {[%clk 0:00:05]}  Rc6+ {[%clk 0:00:04]} 51. Ke5 {[%clk 0:00:06]}  Rc5+ {[%clk 0:00:04]} 52. Kd4 {[%clk 0:00:06]}  Rb5 {[%clk 0:00:04]} 53. h5 {[%clk 0:00:06]}  gxh5 {[%clk 0:00:02]} 54. Rc7 {[%clk 0:00:07]}  Rb3 {[%clk 0:00:02]} 55. Ke5 {[%clk 0:00:06]}  Rxf3 {[%clk 0:00:03]} 56. Kf6 {[%clk 0:00:06]}  Rxg3 {[%clk 0:00:02]} 57. Rc8+ {[%clk 0:00:05]}  Kh7 {[%clk 0:00:03]} 58. Rc7+ {[%clk 0:00:06]}  Kh8 {[%clk 0:00:03]} 59. Kxf5 {[%clk 0:00:04]}  h4 {[%clk 0:00:04]} 60. Rc8+ {[%clk 0:00:02]}  Kh7 {[%clk 0:00:04]} 61. Rc7+ {[%clk 0:00:03]}  Rg7 {[%clk 0:00:04]} 62. Rc3 {[%clk 0:00:03]}  h3 {[%clk 0:00:03]} 63. Rxh3 {[%clk 0:00:03]}  Rf7+ {[%clk 0:00:03]} 64. Kg4 {[%clk 0:00:02]}  Kg6 {[%clk 0:00:04]} 65. Ra3 {[%clk 0:00:02]}  Rf6 {[%clk 0:00:05]} 66. Ra5 {[%clk 0:00:02]}  Rb6 {[%clk 0:00:05]} 67. Kg3 {[%clk 0:00:02]}  Rb3+ {[%clk 0:00:05]} 68. Kg4 {[%clk 0:00:02]}  Rb4+ {[%clk 0:00:06]} 69. Kg3 {[%clk 0:00:03]}  Rc4 {[%clk 0:00:07]} 70. Kg2 {[%clk 0:00:03]}  h5 {[%clk 0:00:07]} 71. Ra6+ {[%clk 0:00:03]}  Kg5 {[%clk 0:00:07]} 72. Ra5+ {[%clk 0:00:04]}  Kg4 {[%clk 0:00:08]} 73. Ra8 {[%clk 0:00:02]}  Rc2+ {[%clk 0:00:08]} 74. Kg1 {[%clk 0:00:03]}  Kg3 {[%clk 0:00:09]} 75. Rg8+ {[%clk 0:00:02]}  Kh3 {[%clk 0:00:09]} 76. Rh8 {[%clk 0:00:03]}  Rc1+ {[%clk 0:00:10]} 77. Kf2 {[%clk 0:00:03]}  Rc5 {[%clk 0:00:11]} 78. Kg1 {[%clk 0:00:01]}  h4 {[%clk 0:00:11]} 79. Kf2 {[%clk 0:00:01]}  Rc1 {[%clk 0:00:12]} 80. Rg8 {[%clk 0:00:01]}  Rb1 {[%clk 0:00:11]} 81. Kf3 {[%clk 0:00:02]}  Kh2 {[%clk 0:00:11]} 82. Kf2 {[%clk 0:00:02]}  Rb2+ {[%clk 0:00:10]} 83. Kf3 {[%clk 0:00:03]}  h3 {[%clk 0:00:10]} 84. Rg7 {[%clk 0:00:02]}  Rg2 {[%clk 0:00:10]} 85. Rh7 {[%clk 0:00:02]}  Rg3+ {[%clk 0:00:11]} 86. Kf2 {[%clk 0:00:02]}  Rg8 {[%clk 0:00:12]} 87. Rh6 {[%clk 0:00:02]}  Rf8+ {[%clk 0:00:12]} 88. Ke2 {[%clk 0:00:02]}  Rf4 {[%clk 0:00:10]} 89. Rh5 {[%clk 0:00:02]}  Kg3 {[%clk 0:00:10]} 90. Rh8 {[%clk 0:00:00]}  h2 {[%clk 0:00:09]} 0-1